Cogmind - Beta 17.1 @@@ ROGUE MODE // 2026.09.11 @ 22:19:22 Player: Alicianrone Result: Destroyed by G-34 Mercenary with Small Laser Performance ------------- Evolutions (1) 500 Regions Visited (4) 800 Robots Destroyed (29) 145 Value Destroyed (547) 547 Prototype IDs (1) 20 Alien Tech Used (0) 0 Bonus (143) 143 TOTAL SCORE: 2155 Bonus ------- Follower Combat Kills 143 Cogmind --------- Core Integrity 0/400 Matter 290/300 Energy 98/100 System Corruption 15% Temperature Cool (10) Movement Flying (34) Location -9/Storage Parts ------- > --- POWER (1) -------- (None) > --- PROPULSION (3) --- VTOL Module Improved Flight Unit > --- UTILITY (3) ------ Machine Analyzer Hardened Light Armor Plating > --- WEAPON (2) ------- Mace Mace > --- INVENTORY (5) ---- Improved Ion Engine Medium Storage Unit Improved Terrain Scanner Plasma Cutter Mace Peak State ------------ > --- POWER ------------ (None) > --- PROPULSION ------- VTOL Module Improved Flight Unit > --- UTILITY ---------- Machine Analyzer Hardened Light Armor Plating Drone Bay > --- WEAPON ----------- Mace Mace > --- INVENTORY -------- Improved Ion Engine Medium Storage Unit Improved Terrain Scanner Plasma Cutter Mace [Rating: 20] Favorites ----------- Power Improved Ion Engine Engine Improved Ion Engine Propulsion Wheel Treads Improved Treads Wheel Wheel Flight Unit VTOL Module Utility Hardened Light Armor Plating Device Improved Terrain Scanner Storage Small Storage Unit Processor Machine Analyzer Protection Hardened Light Armor Plating Weapon Hammer Impact Weapon Hammer Slashing Weapon Mining Claw Build | -11 -10 -10 -9 -9 ------- Run | Yrd Mat Min Mat Sto Slots Evolved 2 | . . . 2 . Power . | . . . . . Propulsion 1 | . . . 1 . Utility 1 | . . . 1 . Weapon . | . . . . . Parts Attached 30 | 6 14 . 9 1 Power 3 | 1 2 . . . Engine 3 | 1 2 . . . Core . | . . . . . Reactor . | . . . . . Propulsion 12 | 3 5 . 4 . Treads 4 | 1 3 . . . Leg . | . . . . . Wheel 5 | 2 2 . 1 . Hover . | . . . . . Flight 3 | . . . 3 . Utility 11 | 2 5 . 3 1 Device 2 | 1 . . . 1 Storage 3 | 1 2 . . . Processor 1 | . . . 1 . Hackware . | . . . . . Protection 5 | . 3 . 2 . Artifact . | . . . . . Weapon 4 | . 2 . 2 . Energy Gun . | . . . . . Energy Cannon . | . . . . . Ballistic Gun . | . . . . . Ballistic Cannon . | . . . . . Launcher . | . . . . . Special Weapon . | . . . . . Impact Weapon 3 | . 1 . 2 . Slashing Weapon 1 | . 1 . . . Piercing Weapon . | . . . . . Special Melee Weapon . | . . . . . Unidentified Prototypes 1 | . . . 1 . Parts Lost 11 | . 3 1 6 1 Power 1 | . . . 1 . Propulsion 6 | . 1 1 3 1 Utility 2 | . 1 . 1 . Weapon 2 | . 1 . 1 . Highest Loss Streak 6 | . 3 1 6 1 To Critical Strikes 1 | . . . 1 . Average Backups 6 | 2 6 9 6 5 Power 1 | . 1 2 1 1 Propulsion 1 | 1 1 2 . . Utility 2 | . 3 4 3 2 Weapon . | . . . . 1 Tool/Special . | . . . . . Unused Backups 6 | . 3 . . 3 Power 2 | . 1 . . 1 Propulsion 2 | . 2 . . . Utility . | . . . . . Weapon 1 | . . . . 1 Tool/Special 1 | . . . . 1 Average Slot Usage (%) 82 | . 89 85 58 69 Engine 11 | . 14 14 6 . Treads 8 | . 12 6 3 . Wheel 13 | . 15 22 8 . Flight 3 | . . . 6 24 Device 2 | . 4 . . 1 Storage 11 | . 13 14 7 . Processor 1 | . . . 2 11 Protection 10 | . 10 14 11 11 Impact Weapon 12 | . 10 14 12 22 Slashing Weapon 5 | . 7 . . . Peak Build Rating 20 | 7 13 11 17 20 Average Rating 10 | 5 10 10 10 15 On Entrance 8 | . 7 10 10 17 Avg Prop Armor Cover (%) 14 | 18 13 12 12 . Naked Turns . | . . . . . Heaviest Build 94 | 9 94 94 29 15 Greatest Support 46 | 20 46 46 32 13 Greatest Overweight (x) 2 | . 2 2 1 1 Average Overweight (x) . | . 1 1 . . Largest Inventory Capacity 25 | 8 25 25 10 5 Average Capacity 9 | 7 10 20 8 5 Most Carried 11 | 3 11 10 9 5 Average Carried 6 | 2 6 9 6 5 Final Capacity 25 | 8 25 10 5 5 Final Carried 10 | 3 10 9 5 5 Class Distribution -------------------- 92% | Mutant 5% | Sprinter Dominant Class ---------------- Mutant | -10/Materials Mutant | -10/Mines Mutant | -9/Materials Mutant | -9/Storage Resources | -11 -10 -10 -9 -9 ----------- Run | Yrd Mat Min Mat Sto Matter Collected 580 | 236 176 32 40 96 Remotely . | . . . . . Salvage Created 1117 | . 853 . 195 69 Parts 33 | 2 24 . 5 2 Haulers Intercepted 4 | . 2 . 1 1 Recyclers Shooed . | . . . . . Parts Field Recycled . | . . . . . Retrieved Matter . | . . . . . Parts Self-Destructed . | . . . . . Prevented . | . . . . . Parts Restored . | . . . . . Kills | -11 -10 -10 -9 -9 ------- Run | Yrd Mat Min Mat Sto Combat Hostiles Destroyed 11 | . 8 . 3 . Melee 8 | . 5 . 3 . Classes Destroyed 8 | 1 6 . 1 . Worker 2 | . 2 . . . Tunneler 3 | 3 . . . . Hauler 4 | . 2 . 1 1 Recycler 4 | . 4 . . . Mechanic 1 | . 1 . . . Watcher 4 | . 2 . 1 1 Grunt 10 | . 8 . 2 . Brawler 1 | . . . 1 . Best Kill Streak 5 | 2 5 . 3 1 Combat Bots Only 2 | . 2 . 2 . Max Kills in Single Turn 1 | 1 1 . 1 1 Gunslinging . | . . . . . Exploded . | . . . . . Melee 1 | . 1 . 1 . Uniques/NPCs Destroyed . | . . . . . Combat | -11 -10 -10 -9 -9 -------- Run | Yrd Mat Min Mat Sto Hostile Shots Fired 244 | . 77 48 93 26 Missed 82 | . 24 12 34 12 Hits 162 | . 53 36 59 14 Melee 13 | . . . 13 . Projectile 149 | . 53 36 46 14 Critical Strikes 5 | . 1 . 3 1 Damage Taken 2346 | . 728 486 946 186 Core 646 | . 134 103 315 94 Absorbed by Shields . | . . . . . Core Remaining (%) 52 | 100 . 5 . . Volleys Fired . | . . . . . Largest . | . . . . . Hottest . | . . . . . Shots Fired . | . . . . . Gun . | . . . . . Cannon . | . . . . . Launcher . | . . . . . Special . | . . . . . Kinetic . | . . . . . Thermal . | . . . . . Explosive . | . . . . . Electromagnetic . | . . . . . Robot Hit Streak . | . . . . . Robot Miss Streak . | . . . . . Penetration Max . | . . . . . Secondary Targets . | . . . . . Shots Hit Robots 63 | . 37 . 23 3 Core Hits 23 | 3 14 2 3 1 Critical Kills 3 | . 3 . . . Critical Parts Destroyed 13 | . 7 . 5 1 Critical Strikes 16 | . 10 . 5 1 Smash 16 | . 10 . 5 1 Melee Attacks 101 | . 51 2 38 10 Impact 98 | . 48 2 38 10 Slashing 3 | . 3 . . . Piercing . | . . . . . Sneak Attacks 14 | . 9 . 2 3 Combat Hostiles . | . . . . . Follow-up Attacks 2 | . . . 1 1 Damage Inflicted 2116 | 53 1224 7 628 204 Guns . | . . . . . Cannons . | . . . . . Explosions . | . . . . . Melee 2027 | . 1195 . 628 204 Ramming 89 | 53 29 7 . . Kinetic . | . . . . . Thermal . | . . . . . Explosive . | . . . . . Electromagnetic . | . . . . . Impact 1976 | . 1144 . 628 204 Slashing 51 | . 51 . . . Piercing . | . . . . . Highest Corruption 15 | . . . 15 15 Average Corruption 14 | . . . 13 15 Corruption Purged . | . . . . . Corruption Blocked . | . . . . . Effects 16 | . . . 8 8 Message Errors 3 | . . . 1 2 Matter Fused 4 | . . . 1 3 Heat Flow Errors 2 | . . . 1 1 Energy Discharges 2 | . . . 1 1 Parts Rejected 1 | . . . 1 . Data Loss (minor) 1 | . . . 1 . Misdirections 3 | . . . 2 1 Overload Shots . | . . . . . Overflow Damage 487 | . 229 . 204 54 Projectiles . | . . . . . Explosions . | . . . . . Melee 487 | . 229 . 204 54 Knockbacks 4 | . 4 . . . Impact 3 | . 3 . . . Kinetic . | . . . . . Secondary 1 | . 1 . . . Self-Inflicted Damage 2 | . 2 . . . Shots . | . . . . . Rammed 48 | 29 15 4 . . Targets Rammed 52 | 32 16 4 . . Kicked . | . . . . . Crushed 4 | 3 1 . . . Highest Temperature 210 | . 10 . 120 210 Average Temperature 67 | . 2 . 71 98 Received Heat Transfer 696 | . 426 . 201 69 Siege Activations . | . . . . . Martial Activations . | . . . . . Shielding Activations . | . . . . . Robots Disrupted . | . . . . . Combat Hostiles . | . . . . . Robots Corrupted 6 | . 4 . 1 1 Combat Hostiles 3 | . 3 . . . Parts Fried 9 | . 3 . 5 1 Impact Corruptions 17 | . 8 . 6 3 Robots Melted . | . . . . . Combat Hostiles . | . . . . . Parts Melted . | . . . . . Heat Transferred . | . . . . . Parts Sabotaged . | . . . . . Parts Stolen . | . . . . . Parts Stripped . | . . . . . Power Chain Reactions . | . . . . . Alert | -11 -10 -10 -9 -9 ------- Run | Yrd Mat Min Mat Sto Maximum Alert Level 2 | . . . . 2 Low Security (%) 95 | 100 100 100 100 54 Level 1 2 | . . . . 27 Level 2 1 | . . . . 18 Level 3 . | . . . . . Level 4 . | . . . . . Level 5 . | . . . . . High Security . | . . . . . Max Security . | . . . . . Peak Influence 509 | 5 75 6 174 509 Initial 73 | . . 6 . 73 Average 42 | . 20 . 34 247 Influence Increases 1531 | 15 396 2 296 822 Destroy 0b10 Robot/C 440 | . 160 . 60 220 Destroy 0b10 Robot/NC 95 | 15 55 . 10 15 Destroy Leader 156 | . 48 . 14 94 Allied During Kill 47 | . . . . 47 Successful Hack 33 | . 28 . . 5 Select Force Hacks 120 | . 30 . 30 60 Destroy Structure 10 | . . 2 2 6 Partial Spotted 105 | . . . 15 90 Lose Combat Pursuer 525 | . 75 . 165 285 Influence Decreases 1036 | 15 380 18 122 501 Entered New Map 111 | . . 10 . 101 Time Decay 546 | 15 350 6 75 100 Lost Part 87 | . 30 . 47 10 Lost Ally 292 | . . 2 . 290 Squads Dispatched 8 | . 2 . 2 4 Investigation 6 | . 1 . 2 3 Extermination . | . . . . . Reinforcement 2 | . 1 . . 1 Assault . | . . . . . Garrison . | . . . . . Intercept . | . . . . . Searches Triggered . | . . . . . Construction Impeded . | . . . . . Haulers Reinforced . | . . . . . Active Scanning Responses . | . . . . . Cargo Convoy Interrupts . | . . . . . Stealth | -11 -10 -10 -9 -9 --------- Run | Yrd Mat Min Mat Sto Distress Signals 2 | . 1 . 1 . Communications Jammed . | . . . . . Distress Signals . | . . . . . Times Spotted 86 | . 23 4 32 27 Peak Tracking Total 13 | . 4 4 12 13 Tactical Retreats 15 | . 4 . 4 7 Traps | -11 -10 -10 -9 -9 ------- Run | Yrd Mat Min Mat Sto Traps Triggered . | . . . . . Indirectly . | . . . . . Trap Hack Attempts . | . . . . . Triggered . | . . . . . Disarmed . | . . . . . Reprogrammed 6 | . 6 . . . Reused . | . . . . . Traps Extracted . | . . . . . Installed . | . . . . . Triggered . | . . . . . Machines | -11 -10 -10 -9 -9 ---------- Run | Yrd Mat Min Mat Sto Machines Disabled . | . . . . . Max in Single Turn . | . . . . . Garrison Access 1 | . . . . 1 Machines Repaired . | . . . . . Machines Dismantled . | . . . . . Machines Sabotaged . | . . . . . Overloaded Fab Kills . | . . . . . Hacking | -11 -10 -10 -9 -9 --------- Run | Yrd Mat Min Mat Sto Machines Accessed 19 | . 7 . 3 9 Terminals 13 | . 6 . 2 5 Fabricators . | . . . . . Repair Stations 1 | . . . . 1 Recycling Units 4 | . 1 . 1 2 Scanalyzers . | . . . . . Garrison Access 1 | . . . . 1 Total Hacks 52 | . 25 . 6 21 Successful 27 | . 18 . 1 8 Failed 25 | . 7 . 5 13 Catastrophic 2 | . . . 1 1 Database Lockouts . | . . . . . Manual 38 | . 24 . 1 13 Terminals 45 | . 24 . 5 16 Fabricators . | . . . . . Repair Stations 2 | . . . . 2 Recycling Units 4 | . 1 . 1 2 Scanalyzers . | . . . . . Garrison Access 1 | . . . . 1 Terminal Hacks 10 | . 7 . . 3 Part Schematic 2 | . 2 . . . Robot Schematic 1 | . 1 . . . Robot Analysis 2 | . 2 . . . Open Door 1 | . . . . 1 Branch Access Points 1 | . . . . 1 Locate Traps 2 | . 1 . . 1 Reprogram Traps 1 | . 1 . . . Fabricator Hacks . | . . . . . Repair Station Hacks . | . . . . . Recycling Unit Hacks . | . . . . . Scanalyzer . | . . . . . Garrison Access Hacks 1 | . . . . 1 Seal Access 1 | . . . . 1 Unauthorized Hacks 16 | . 11 . 1 4 Terminals 12 | . 10 . . 2 Track 2 | . . . . 2 Assimilate 2 | . 2 . . . Botnet 2 | . 2 . . . Disrupt 1 | . 1 . . . Skim 5 | . 5 . . . Fabricators . | . . . . . Repair Stations . | . . . . . Recycling Units 4 | . 1 . 1 2 Tunnel 4 | . 1 . 1 2 Scanalyzers . | . . . . . Garrison Access . | . . . . . Data Cores Recovered . | . . . . . Used . | . . . . . Hacking Detections 14 | . 6 . 2 6 Full Trace Events 2 | . . . 1 1 Feedback Events . | . . . . . Feedback Blocked . | . . . . . Robot Schematics Acquired 1 | . 1 . . . Robots Built . | . . . . . Authchips . | . . . . . Time . | . . . . . Total Robot Build Rating . | . . . . . Part Schematics Acquired 2 | . 2 . . . Parts Built . | . . . . . Authchips . | . . . . . Time . | . . . . . Total Part Build Rating . | . . . . . Part Studies Acquired . | . . . . . Parts Repaired . | . . . . . Time . | . . . . . Parts Recycled . | . . . . . Recycled Matter . | . . . . . Retrieved Matter . | . . . . . Retrieved Components . | . . . . . Parts Scanalyzed . | . . . . . Part Schematics Acquired . | . . . . . Parts Damaged . | . . . . . Bothacking | -11 -10 -10 -9 -9 ------------ Run | Yrd Mat Min Mat Sto Used RIF Installer . | . . . . . Robots Hacked . | . . . . . Non-combat . | . . . . . Combat . | . . . . . Robot Hacks Applied . | . . . . . Relay Couplers Released . | . . . . . Fabnet Peak Effective % . | . . . . . Robots Rewired . | . . . . . Allies Hacked . | . . . . . Hacks Repelled . | . . . . . Allies | -11 -10 -10 -9 -9 -------- Run | Yrd Mat Min Mat Sto Total Allies 12 | . 2 . . 10 Largest Group 10 | . 2 2 . 10 Highest-Rated Group 88 | . 19 19 . 88 Highest-Rated Ally 16 | . 10 10 . 16 Total Orders 6 | . 5 . . 1 STAY 2 | . 2 . . . FOLLOW 3 | . 3 . . . EXPLORE 1 | . . . . 1 Ally Attacks 67 | . . . . 67 Total Damage 690 | . . . . 690 Kills 12 | . . . . 12 Allies Corrupted . | . . . . . Allies Melted . | . . . . . Intel | -11 -10 -10 -9 -9 ------- Run | Yrd Mat Min Mat Sto Active Infowar (turns) 712 | 105 342 . 59 206 Terrain 447 | 105 342 . . . Machine Analysis 265 | . . . 59 206 Robot Analysis Total 2 | . 2 . . . Derelict Logs Recovered . | . . . . . Drone Launches 17 | . . . . 17 Drone Recoveries 3 | . . . . 3 Exploration | -11 -10 -10 -9 -9 ------------- Run | Yrd Mat Min Mat Sto Turns Passed 1997 | 223 1196 139 233 206 Spaces Moved 1746 | 196 861 89 189 411 Core 2 | 2 . . . . Treads 31 | 5 16 10 . . Legs . | . . . . . Wheels 1153 | 189 845 79 40 . Hover . | . . . . . Flight 560 | . . . 149 411 Fastest Speed 30 | 50 80 115 30 30 Average Speed 80 | 81 103 131 49 35 Slowest Speed 160 | 160 160 160 115 109 Overloaded Moves . | . . . . . Propulsion Burnouts . | . . . . . Robots Hopped 21 | . . . 3 18 Potential Cave-ins . | . . . . . Cave-ins Triggered . | . . . . . Exploration Rate (%) 41 | 3 94 22 28 60 Regions Visited 4 Branch Regions 2 Pre-discovered Areas 5 | . 2 . 1 2 Known Exits Taken 3 | . 1 1 1 . Unknown Exits Taken 1 | 1 . . . . Scrap Searched . | . . . . . Spaces Dug 10 | . . 2 2 6 Terrain Destroyed 10 | . . 2 2 6 Melee 10 | . . 2 2 6 Projectile . | . . . . . AOE . | . . . . . Terrain Rammed . | . . . . . Walls Destroyed . | . . . . . Machines Disabled . | . . . . . Actions | -11 -10 -10 -9 -9 --------- Run | Yrd Mat Min Mat Sto Total 2100 | 236 1064 103 260 437 Wait 140 | . 87 5 22 26 Move 1704 | 195 860 88 182 379 Hop 17 | . . . 3 14 Pick Up 22 | 3 18 . 1 . Fast Attach 15 | 5 2 . 7 1 Attach 7 | . 2 1 4 . Detach 1 | . . . 1 . Swap 24 | 1 20 3 . . Drop 15 | . 10 . 4 1 Fire . | . . . . . Melee 96 | . 49 2 36 9 Ram 1 | . 1 . . . Kick . | . . . . . Crush 51 | 32 15 4 . . Escape Stasis . | . . . . . Rewire . | . . . . . Trap . | . . . . . Miscellaneous 7 | . . . . 7 Route ------- -11/Scrapyard -10/Materials (discovered 5 exits: *Mat x3 / *Min / Sub) -10/Mines (discovered 3 exits: *Mat x2 / *Sub) -9/Materials (discovered 5 exits: Mat x3 / *Sto x2) -9/Storage (discovered 1 exit: Rec) History --------- Turn | Location | Event 11 | -11/Scrapyard | Discovered new exit (range 15) 224 | -11/Scrapyard | Entered Materials 310 | -10/Materials | Build established: Mutant 373 | -10/Materials | Discovered new exit (range 8) 394 | -10/Materials | Discovered new exit (range 15) 683 | -10/Materials | Discovered new exit (range 5) 970 | -10/Materials | Discovered new exit (range 9) 1150 | -10/Materials | Learned 4 Subcaves zone layouts 1230 | -10/Materials | Identified exit to Materials 1230 | -10/Materials | Identified exit to Mines 1230 | -10/Materials | Identified exit to Subcaves 1254 | -10/Materials | Core integrity fell below 50% 1286 | -10/Materials | Lost 3 parts (1n1u1w) 1420 | -10/Materials | Entered Mines 1420 | -10/Mines | Accompanied by 2 allies 1449 | -10/Mines | Assembled infested the area 1454 | -10/Mines | Assisted by a Guerilla fighting off Assembled 1507 | -10/Mines | Discovered exit to Subcaves (range 3) 1546 | -10/Mines | Lost 3 allies 1546 | -10/Mines | Core integrity fell below 20% 1559 | -10/Mines | Received a Rocket Launcher from a helpful Derelict 1559 | -10/Mines | Entered Materials 1559 | -9/Materials | Evolved 2 slots: Propulsion x1, Utility x1 1560 | -9/Materials | Identified exit to Materials 1560 | -9/Materials | Identified exit to Storage 1650 | -9/Materials | System corruption reached 10% 1704 | -9/Materials | Core integrity fell below 50% 1732 | -9/Materials | Lost 6 parts (1p3n1u1w) 1792 | -9/Materials | Entered Storage 1821 | -9/Storage | Core integrity fell below 20% 1895 | -9/Storage | Identified exit to Recycling 1922 | -9/Storage | Assisted by bots powering up and referring to "LRC-V3" 1928 | -9/Storage | Lost 8 allies 1998 | -9/Storage | Destroyed by G-34 Mercenary with Small Laser Last Messages --------------- 01969_ Y-45 Defender destroyed. 01971_ Y-45 Defender suffers critical hit (Burn). 01972_ K-01 Serf collects debris. 01972_ R-06 Scavenger collects Tractor Beam. 01976_ K-01 Serf collects debris. 01979_ Acquired 39 matter. 01985_ R-06 Scavenger collects Lgt. Armor Plating. 01986_ U-05 Engineer builds a Wall. 01987_ O-16 Technician: "IFF HANDSHAKE FAILED. SECURING TERMINAL." 01988_ O-16 Technician uses terminal to summon reinforcements. 01988_ ALERT: Hostiles spotted, dispatching reinforcements to Terminal S005. 01988_ O-16 Technician locks terminal. 01988_ O-16 Technician cleans trojans from system. 01994_ System corrupted: Matter fused (-10). Map ----- +----------------------------------------------------+ | | | | | | | | | | | | | | | | | | | | | | | | | | | | | | | | | | | | | | | ?????????????????????????????????????????????????? | | ?????????????????????????????????????????????????? | | ?????????????????????????????????????????????????? | | ???????????#############################?????????? | | ?????????? ^^ #?????????? | | ??????????g g g ^^ #?????????? | | ?????????? aa a @ ^^ #?????????? | | ???????????????########### ######+#######????????? | | ???????????????# #?# #???# #????????? | | ???????????????# """ #?# #???#""" #????????? | | "??????????????# R" ### #???#""" #????????? | | "??????????????# """ + #???#""" #????????? | | "??????????????# # #???# #????????? | | ???????????????#####+### #???#""" #????????? | | ???????????????????# #???#""" #????????? | | ???????????????????# ####???#""" #????????? | | ???????????????????# #??????# #????????? | | ???????????????????# #??????#######+########??? | | ???????????????????# #????#####???# # ###? | | ???????????????????# ###### ##### # ""#? | | ?????????"""""?????# %%% %% + """ Y"#? | | ??????###""T""?????# ##+###### #### # """ ""#? | | ??????# ????#### ## #####??# # """ ###? | | ??????# ??# #=[[ #??????# # #??? | | ??????# # #=[[ ""#??????# ######"###? | | ??????# ]] + T #*[ T"#??????# ## #? | | ?????# ] # # ""###????# ## """ ""#? | | ?????## ??# # ##"##### ## """ Y"#? | | ??????# ????## ###########! !## ## """ ""#? | | ??????# ???????# #? #! !## ## #? | | ??????##?????????# # #! !## ##+##+###? | +----------------------------------------------------+ Best States ------------- Heat Dissipation 28 Energy Generation 12 Energy Capacity 265 Matter Stores 300 Matter Capacity 300 Sight Range 16 Terrain Scan Range 16 Terrain Scan Density 10 Armor Coverage 300 Evasion (%) 64 Recoil Reduction 2 Item Schematics ----------------- Med. Storage Unit | -10/Materials | Hacked Lrg. Storage Unit | -10/Materials | Hacked Robot Schematics ------------------ M-13 Machinist | -10/Materials | Hacked Fabricated ------------ Nothing Repaired ---------- Nothing Studied --------- None Alien Tech Used ----------------- None Achievements -------------- None Challenges ------------ None Game ------ Seed NodeAntigravActivator Manual? 0 Play Time 00:25:53 Cumulative 1082.4 hours Start 2026.09.11 @ 21:57:05 End 2026.09.11 @ 22:19:22 Sessions 1 Manual Loads 0 Difficulty Rogue Special Mode None Game No. 302 Rogue 302 Adventurer 0 Explorer 0 Win Type - Total 49 Types 14/11/12/2/2/0/4/1/1/2 Lore% 97 Gallery% 91 Achievement% 87 Wizard Run 0 Options --------- Layout 1 ASCII 0 Keyboard 0 Movement Mouse Keybinds 0 Fullscreen 2 Font 32/SmallcapsGlow Map View 50x35 Zoom Use 0% Tactical HUD 1 Map Filters NONE Filters NONE Steam 1 RUN: 49ddc804-76d3-4147-98b0-fee8aa5d2e59